[Event "*** Biggest EVER Titled Tuesday"]
[Site "Chess.com"]
[Date "2018.04.17"]
[Round "6"]
[White "Fins0905"]
[Black "Msb2"]
[Result "0-1"]
[WhiteElo "2516"]
[BlackElo "2706"]
[TimeControl "180+2"]
[EndTime "14:25:15 PDT"]
[Termination "Msb2 won by checkmate"]

1. d4 {[%clk 0:03:01.9]} 1... Nf6 {[%clk 0:02:59.8]} 2. c4 {[%clk 0:03:01.4]}
2... e6 {[%clk 0:03:01.2]} 3. Nf3 {[%clk 0:03:02.4]} 3... d5 {[%clk 0:03:02.6]}
4. Bg5 {[%clk 0:03:02.2]} 4... Bb4+ {[%clk 0:03:00.6]} 5. Nc3 {[%clk 0:03:00.7]}
5... dxc4 {[%clk 0:03:01.2]} 6. e3 {[%clk 0:02:58.8]} 6... b5 {[%clk 0:03:01]}
7. a4 {[%clk 0:02:57.1]} 7... c6 {[%clk 0:03:02.5]} 8. Be2 {[%clk 0:02:54.9]}
8... O-O {[%clk 0:03:01.1]} 9. O-O {[%clk 0:02:55.2]} 9... Bxc3 {[%clk
0:02:58.2]} 10. bxc3 {[%clk 0:02:55.7]} 10... Nbd7 {[%clk 0:02:59.1]} 11. Qb1
{[%clk 0:02:46.4]} 11... a6 {[%clk 0:02:49.9]} 12. Ne5 {[%clk 0:02:42.7]} 12...
Qc7 {[%clk 0:02:50.9]} 13. Bf3 {[%clk 0:02:05]} 13... Nd5 {[%clk 0:02:43.5]} 14.
Nxd7 {[%clk 0:01:55]} 14... Bxd7 {[%clk 0:02:43.5]} 15. Qc1 {[%clk 0:01:49.8]}
15... h6 {[%clk 0:02:44]} 16. Bh4 {[%clk 0:01:50.3]} 16... c5 {[%clk 0:02:12.2]}
17. e4 {[%clk 0:01:37]} 17... Nf4 {[%clk 0:01:49.2]} 18. Bg3 {[%clk 0:01:09.7]}
18... e5 {[%clk 0:01:50.3]} 19. axb5 {[%clk 0:00:57.4]} 19... axb5 {[%clk
0:01:50.1]} 20. Rxa8 {[%clk 0:00:59]} 20... Rxa8 {[%clk 0:01:51.7]} 21. Bxf4
{[%clk 0:00:54.1]} 21... exf4 {[%clk 0:01:52.7]} 22. e5 {[%clk 0:00:55.6]} 22...
Rd8 {[%clk 0:01:42.9]} 23. Qxf4 {[%clk 0:00:51.3]} 23... cxd4 {[%clk 0:01:44.3]}
24. Qxd4 {[%clk 0:00:39.1]} 24... Be6 {[%clk 0:01:45.6]} 25. Qe4 {[%clk
0:00:27.7]} 25... Bd5 {[%clk 0:01:46]} 26. Qf5 {[%clk 0:00:23.2]} 26... Bxf3
{[%clk 0:01:46.4]} 27. gxf3 {[%clk 0:00:21]} 27... g6 {[%clk 0:01:41.8]} 28. Qf4
{[%clk 0:00:21.1]} 28... Qe7 {[%clk 0:01:27.9]} 29. Rb1 {[%clk 0:00:17.8]} 29...
Rd5 {[%clk 0:01:24.4]} 30. e6 {[%clk 0:00:16.2]} 30... Qxe6 {[%clk 0:01:21.6]}
31. Qb8+ {[%clk 0:00:08.7]} 31... Kg7 {[%clk 0:01:22.9]} 32. Rxb5 {[%clk
0:00:09.9]} 32... Rxb5 {[%clk 0:01:22.5]} 33. Qxb5 {[%clk 0:00:10.8]} 33... Qe1+
{[%clk 0:01:24.2]} 34. Kg2 {[%clk 0:00:12.1]} 34... Qxc3 {[%clk 0:01:26.1]} 35.
h3 {[%clk 0:00:06.6]} 35... Qd4 {[%clk 0:01:27.2]} 36. Qb4 {[%clk 0:00:07.9]}
36... h5 {[%clk 0:01:22.4]} 37. Kg1 {[%clk 0:00:04.8]} 37... h4 {[%clk
0:01:23.7]} 38. Kg2 {[%clk 0:00:06]} 38... g5 {[%clk 0:01:15.1]} 39. Kg1 {[%clk
0:00:06.5]} 39... Kg6 {[%clk 0:00:49.9]} 40. Kg2 {[%clk 0:00:06.2]} 40... f6
{[%clk 0:00:51.4]} 41. Qf8 {[%clk 0:00:05.4]} 41... Qd5 {[%clk 0:00:48.4]} 42.
Qe8+ {[%clk 0:00:06]} 42... Qf7 {[%clk 0:00:48.6]} 43. Qc8 {[%clk 0:00:06.3]}
43... Kg7 {[%clk 0:00:46.3]} 44. Qc5 {[%clk 0:00:06]} 44... Qe6 {[%clk
0:00:44.4]} 45. Qc7+ {[%clk 0:00:07.1]} 45... Kg6 {[%clk 0:00:45.9]} 46. Kg1
{[%clk 0:00:08.1]} 46... Qxh3 {[%clk 0:00:30]} 47. Qxc4 {[%clk 0:00:08.9]} 47...
Qxf3 {[%clk 0:00:31.3]} 48. Qg8+ {[%clk 0:00:10.1]} 48... Kf5 {[%clk 0:00:32.9]}
49. Qc8+ {[%clk 0:00:06.7]} 49... Kf4 {[%clk 0:00:34.4]} 50. Qc7+ {[%clk
0:00:05.4]} 50... Kg4 {[%clk 0:00:35.8]} 51. Qd7+ {[%clk 0:00:05.5]} 51... Qf5
{[%clk 0:00:32.6]} 52. Qd1+ {[%clk 0:00:04.3]} 52... Kf4 {[%clk 0:00:25.6]} 53.
Qd2+ {[%clk 0:00:04.2]} 53... Ke5 {[%clk 0:00:23.9]} 54. Qc3+ {[%clk 0:00:05.4]}
54... Kf4 {[%clk 0:00:21.4]} 55. Qd4+ {[%clk 0:00:05.3]} 55... Kf3 {[%clk
0:00:22.4]} 56. Qe3+ {[%clk 0:00:06.1]} 56... Kg4 {[%clk 0:00:23.7]} 57. Qe2+
{[%clk 0:00:03.9]} 57... Qf3 {[%clk 0:00:24.9]} 58. Qe6+ {[%clk 0:00:04.5]}
58... Kh5 {[%clk 0:00:23.8]} 59. Qf7+ {[%clk 0:00:05.3]} 59... Kh6 {[%clk
0:00:25.4]} 60. Qf8+ {[%clk 0:00:06.2]} 60... Kg6 {[%clk 0:00:27]} 61. Qe8+
{[%clk 0:00:06.7]} 61... Kf5 {[%clk 0:00:27.6]} 62. Qd7+ {[%clk 0:00:07.4]}
62... Kf4 {[%clk 0:00:28.5]} 63. Qd4+ {[%clk 0:00:08.2]} 63... Kf5 {[%clk
0:00:28.5]} 64. Qd7+ {[%clk 0:00:09.2]} 64... Kg6 {[%clk 0:00:27.8]} 65. Qe8+
{[%clk 0:00:10.3]} 65... Kh6 {[%clk 0:00:28.5]} 66. Qf8+ {[%clk 0:00:11.4]}
66... Kh5 {[%clk 0:00:29.4]} 67. Qe8+ {[%clk 0:00:11.9]} 67... Kg4 {[%clk
0:00:30.3]} 68. Qd7+ {[%clk 0:00:12.5]} 68... Qf5 {[%clk 0:00:30.1]} 69. Qd1+
{[%clk 0:00:10.7]} 69... Qf3 {[%clk 0:00:27.3]} 70. Qd7+ {[%clk 0:00:10.6]}
70... f5 {[%clk 0:00:28.9]} 71. Qd4+ {[%clk 0:00:08.7]} 71... Kh3 {[%clk
0:00:28.2]} 72. Qe5 {[%clk 0:00:04.4]} 72... Qg2# {[%clk 0:00:29.1]} 0-1

[Event "*** Biggest EVER Titled Tuesday"]
[Site "Chess.com"]
[Date "2018.04.17"]
[Round "6"]
[White "Jospem"]
[Black "Kazakov_Konstantin"]
[Result "1-0"]
[WhiteElo "2701"]
[BlackElo "2464"]
[TimeControl "180+2"]
[EndTime "14:25:18 PDT"]
[Termination "Jospem won by resignation"]

1. e4 {[%clk 0:03:01.9]} 1... e5 {[%clk 0:03:00]} 2. Nf3 {[%clk 0:03:03.3]} 2...
Nc6 {[%clk 0:03:00.7]} 3. Bb5 {[%clk 0:02:57.3]} 3... a6 {[%clk 0:03:00.5]} 4.
Ba4 {[%clk 0:02:57.9]} 4... Nf6 {[%clk 0:02:58.9]} 5. O-O {[%clk 0:02:58.7]}
5... Be7 {[%clk 0:03:00.1]} 6. Re1 {[%clk 0:02:58.9]} 6... b5 {[%clk 0:03:01]}
7. Bb3 {[%clk 0:03:00.3]} 7... O-O {[%clk 0:03:02.3]} 8. a4 {[%clk 0:02:59.1]}
8... b4 {[%clk 0:03:00.4]} 9. d3 {[%clk 0:02:57.6]} 9... d6 {[%clk 0:02:55.4]}
10. a5 {[%clk 0:02:58.2]} 10... Be6 {[%clk 0:02:49.9]} 11. Nbd2 {[%clk
0:02:58.8]} 11... Qc8 {[%clk 0:02:45]} 12. c3 {[%clk 0:02:58.8]} 12... bxc3
{[%clk 0:02:39.4]} 13. bxc3 {[%clk 0:03:00.5]} 13... Rb8 {[%clk 0:02:39.2]} 14.
Bxe6 {[%clk 0:02:37.8]} 14... Qxe6 {[%clk 0:02:38.6]} 15. d4 {[%clk 0:02:39.7]}
15... exd4 {[%clk 0:02:20.7]} 16. cxd4 {[%clk 0:02:41.6]} 16... Nb4 {[%clk
0:02:21]} 17. d5 {[%clk 0:02:37.8]} 17... Qd7 {[%clk 0:02:19.2]} 18. Nb3 {[%clk
0:02:29.8]} 18... c5 {[%clk 0:02:16.4]} 19. Bb2 {[%clk 0:01:58.8]} 19... Rfe8
{[%clk 0:02:15.2]} 20. h3 {[%clk 0:01:47.5]} 20... c4 {[%clk 0:02:01.5]} 21. Nc1
{[%clk 0:01:43.3]} 21... Nbxd5 {[%clk 0:01:58.5]} 22. Bd4 {[%clk 0:01:37.5]}
22... Nf4 {[%clk 0:01:57]} 23. Ra3 {[%clk 0:01:31.7]} 23... Ne6 {[%clk 0:01:54]}
24. Ba1 {[%clk 0:01:29.7]} 24... d5 {[%clk 0:01:52.2]} 25. Rae3 {[%clk
0:01:15.4]} 25... Red8 {[%clk 0:01:45.2]} 26. Ne5 {[%clk 0:01:15.7]} 26... Qb5
{[%clk 0:01:42.8]} 27. exd5 {[%clk 0:01:14.8]} 27... Rxd5 {[%clk 0:01:42.2]} 28.
Qf3 {[%clk 0:01:09.7]} 28... Bb4 {[%clk 0:01:41.6]} 29. Rf1 {[%clk 0:00:57.8]}
29... Bd2 {[%clk 0:01:38.6]} 30. Re2 {[%clk 0:00:55.8]} 30... c3 {[%clk
0:01:34.5]} 31. Bxc3 {[%clk 0:00:50.9]} 31... Bxc3 {[%clk 0:01:34]} 32. Qxc3
{[%clk 0:00:51.9]} 32... Nd4 {[%clk 0:01:11.9]} 33. Re3 {[%clk 0:00:49.8]} 33...
Qxa5 {[%clk 0:01:08.6]} 34. Qxa5 {[%clk 0:00:49.4]} 34... Rxa5 {[%clk
0:01:07.8]} 35. Rd1 {[%clk 0:00:47.8]} 35... Rd5 {[%clk 0:01:03.7]} 36. Kh1
{[%clk 0:00:43.6]} 36... h6 {[%clk 0:00:56]} 37. Ncd3 {[%clk 0:00:42.9]} 37...
Nf5 {[%clk 0:00:51.3]} 38. Ree1 {[%clk 0:00:43.2]} 38... a5 {[%clk 0:00:51.4]}
39. g4 {[%clk 0:00:42.7]} 39... Nh4 {[%clk 0:00:42.1]} 40. Nc6 {[%clk
0:00:40.4]} 40... Rbb5 {[%clk 0:00:23.4]} 41. Ne7+ {[%clk 0:00:41.3]} 41... Kh7
{[%clk 0:00:24.7]} 42. Nxd5 {[%clk 0:00:43.2]} 42... Rxd5 {[%clk 0:00:25.4]} 43.
Ne5 {[%clk 0:00:39.1]} 43... Rxd1 {[%clk 0:00:25.8]} 44. Rxd1 {[%clk 0:00:40.2]}
44... Ne4 {[%clk 0:00:27.4]} 45. Rd7 {[%clk 0:00:19]} 45... f6 {[%clk
0:00:26.8]} 46. Nd3 {[%clk 0:00:19.5]} 46... a4 {[%clk 0:00:23.9]} 47. Ra7
{[%clk 0:00:20.8]} 47... Ng5 {[%clk 0:00:22.1]} 48. Kh2 {[%clk 0:00:20.8]} 48...
Nhf3+ {[%clk 0:00:21.1]} 49. Kg3 {[%clk 0:00:22.1]} 49... Nd2 {[%clk 0:00:14.8]}
50. Rxa4 {[%clk 0:00:20.8]} 50... Nde4+ {[%clk 0:00:13.8]} 51. Kg2 {[%clk
0:00:21.4]} 51... Nd6 {[%clk 0:00:14.3]} 52. h4 {[%clk 0:00:21.5]} 52... Ngf7
{[%clk 0:00:13.6]} 53. Ra7 {[%clk 0:00:20.9]} 53... Nh8 {[%clk 0:00:10.6]} 54.
h5 {[%clk 0:00:21.6]} 54... Ndf7 {[%clk 0:00:10]} 55. f4 {[%clk 0:00:21.8]}
55... Nd6 {[%clk 0:00:10.6]} 56. Kf3 {[%clk 0:00:23]} 56... Nhf7 {[%clk
0:00:10.9]} 57. Nc5 {[%clk 0:00:23.6]} 57... Kg8 {[%clk 0:00:11.2]} 58. Ra8+
{[%clk 0:00:23]} 58... Kh7 {[%clk 0:00:11.9]} 59. Ne6 {[%clk 0:00:24.6]} 59...
g5 {[%clk 0:00:12.5]} 60. hxg6+ {[%clk 0:00:22]} 60... Kxg6 {[%clk 0:00:12.3]}
61. Rg8+ {[%clk 0:00:20.4]} 61... Kh7 {[%clk 0:00:13.3]} 62. Rg7+ {[%clk
0:00:21.2]} 62... Kh8 {[%clk 0:00:14.2]} 63. Rg6 {[%clk 0:00:22.6]} 63... f5
{[%clk 0:00:15.3]} 64. g5 {[%clk 0:00:21.2]} 64... hxg5 {[%clk 0:00:15.5]} 65.
Nxg5 {[%clk 0:00:21.6]} 65... Nxg5+ {[%clk 0:00:16.5]} 66. fxg5 {[%clk
0:00:20.9]} 66... Kh7 {[%clk 0:00:17.8]} 67. Rxd6 {[%clk 0:00:21.4]} 1-0

[Event "*** Biggest EVER Titled Tuesday"]
[Site "Chess.com"]
[Date "2018.04.17"]
[Round "6"]
[White "ABDELAZEEZ-M"]
[Black "Zhani-Z"]
[Result "1-0"]
[WhiteElo "2317"]
[BlackElo "2404"]
[TimeControl "180+2"]
[EndTime "14:25:39 PDT"]
[Termination "ABDELAZEEZ-M won by resignation"]

1. d4 {[%clk 0:03:00.1]} 1... Nf6 {[%clk 0:03:00.6]} 2. Nf3 {[%clk 0:03:01]}
2... e6 {[%clk 0:03:01.5]} 3. c4 {[%clk 0:03:01.9]} 3... Bb4+ {[%clk 0:03:02.4]}
4. Nc3 {[%clk 0:03:02.3]} 4... b6 {[%clk 0:03:02.6]} 5. Bg5 {[%clk 0:03:02.7]}
5... Bb7 {[%clk 0:03:00.6]} 6. Rc1 {[%clk 0:03:03.4]} 6... h6 {[%clk 0:02:53.6]}
7. Bxf6 {[%clk 0:03:01.7]} 7... Qxf6 {[%clk 0:02:52.5]} 8. a3 {[%clk 0:03:02.5]}
8... Bxc3+ {[%clk 0:02:52.9]} 9. Rxc3 {[%clk 0:03:03.1]} 9... d6 {[%clk
0:02:53]} 10. g3 {[%clk 0:03:03]} 10... O-O {[%clk 0:02:52]} 11. Bg2 {[%clk
0:03:03.7]} 11... Nd7 {[%clk 0:02:52.2]} 12. Qc2 {[%clk 0:03:03.7]} 12... Qe7
{[%clk 0:02:46.3]} 13. h4 {[%clk 0:02:59.6]} 13... f5 {[%clk 0:02:46]} 14. O-O
{[%clk 0:02:54.3]} 14... Nf6 {[%clk 0:02:45.9]} 15. Nd2 {[%clk 0:02:54.2]} 15...
Bxg2 {[%clk 0:02:45.7]} 16. Kxg2 {[%clk 0:02:54.9]} 16... c5 {[%clk 0:02:39.7]}
17. dxc5 {[%clk 0:02:53.2]} 17... dxc5 {[%clk 0:02:37.9]} 18. e4 {[%clk
0:02:52.8]} 18... Rad8 {[%clk 0:02:37.8]} 19. exf5 {[%clk 0:02:50.2]} 19... exf5
{[%clk 0:02:38.4]} 20. Re3 {[%clk 0:02:49.9]} 20... Qb7+ {[%clk 0:02:39.1]} 21.
Nf3 {[%clk 0:02:20.3]} 21... f4 {[%clk 0:02:29.7]} 22. Re5 {[%clk 0:01:46.7]}
22... Ng4 {[%clk 0:02:25]} 23. Qe4 {[%clk 0:01:23.6]} 23... Qxe4 {[%clk
0:01:36.2]} 24. Rxe4 {[%clk 0:01:24.2]} 24... Rd3 {[%clk 0:01:37.4]} 25. Rxf4
{[%clk 0:01:10.6]} 25... Rxf4 {[%clk 0:01:32.8]} 26. gxf4 {[%clk 0:01:11.3]}
26... Rb3 {[%clk 0:01:26.5]} 27. Rb1 {[%clk 0:01:10.5]} 27... Nf6 {[%clk
0:01:23.8]} 28. Nd2 {[%clk 0:01:09.3]} 28... Rd3 {[%clk 0:01:24.6]} 29. Nf3
{[%clk 0:01:07.8]} 29... Nh5 {[%clk 0:01:22.8]} 30. Re1 {[%clk 0:01:02.7]} 30...
Nxf4+ {[%clk 0:01:22.5]} 31. Kg3 {[%clk 0:01:03.3]} 31... Nh5+ {[%clk 0:01:23]}
32. Kg4 {[%clk 0:01:02]} 32... Nf6+ {[%clk 0:01:22.7]} 33. Kf4 {[%clk
0:00:58.4]} 33... Rb3 {[%clk 0:01:14]} 34. Re2 {[%clk 0:00:58.7]} 34... Nh5+
{[%clk 0:00:59.7]} 35. Kg4 {[%clk 0:00:52.7]} 35... Nf6+ {[%clk 0:01:00.1]} 36.
Kf4 {[%clk 0:00:53.6]} 36... Kh7 {[%clk 0:01:00]} 37. Rd2 {[%clk 0:00:50]} 37...
Kg6 {[%clk 0:00:58.3]} 38. Ne5+ {[%clk 0:00:46.3]} 38... Kh5 {[%clk 0:00:59]}
39. f3 {[%clk 0:00:43.3]} 39... Ng8 {[%clk 0:00:43.4]} 40. Rg2 {[%clk
0:00:43.1]} 40... Nf6 {[%clk 0:00:25.4]} 41. Rxg7 {[%clk 0:00:40.6]} 41... Kxh4
{[%clk 0:00:26]} 42. Rg6 {[%clk 0:00:31.4]} 42... Nh5+ {[%clk 0:00:23.1]} 43.
Kf5 {[%clk 0:00:29.4]} 43... Ng3+ {[%clk 0:00:23.7]} 44. Kf4 {[%clk 0:00:30.4]}
44... Ne2+ {[%clk 0:00:24.2]} 45. Kf5 {[%clk 0:00:31]} 45... h5 {[%clk
0:00:24.1]} 46. f4 {[%clk 0:00:27.3]} 46... Kh3 {[%clk 0:00:15.2]} 47. Ke4
{[%clk 0:00:20.1]} 47... Ng3+ {[%clk 0:00:14.7]} 48. Kd5 {[%clk 0:00:19.1]}
48... h4 {[%clk 0:00:15.6]} 49. Rh6 {[%clk 0:00:18.2]} 49... Nf5 {[%clk
0:00:15.5]} 50. Rh5 {[%clk 0:00:17.3]} 50... Ng3 {[%clk 0:00:16]} 51. Rh6 {[%clk
0:00:17.3]} 51... Nf5 {[%clk 0:00:16.9]} 52. Rh5 {[%clk 0:00:18.2]} 52... Ng3
{[%clk 0:00:17.6]} 53. Rh6 {[%clk 0:00:19.1]} 53... Rxb2 {[%clk 0:00:19.4]} 54.
Ng6 {[%clk 0:00:19.2]} 54... Kg4 {[%clk 0:00:19.3]} 55. Nxh4 {[%clk 0:00:19.2]}
55... Rd2+ {[%clk 0:00:19.1]} 56. Kc6 {[%clk 0:00:19.9]} 56... Ne2 {[%clk
0:00:18.6]} 57. Rh7 {[%clk 0:00:20.1]} 57... Nxf4 {[%clk 0:00:18.8]} 58. Kb5
{[%clk 0:00:18.3]} 58... Rd3 {[%clk 0:00:19.7]} 59. Rf7 {[%clk 0:00:18.5]} 59...
Rd4 {[%clk 0:00:18.7]} 60. Nf5 {[%clk 0:00:19.2]} 60... Rd1 {[%clk 0:00:18.4]}
61. Ne3+ {[%clk 0:00:20.1]} 61... Kg5 {[%clk 0:00:19.4]} 62. Nxd1 {[%clk
0:00:22]} 62... Ne6 {[%clk 0:00:19]} 63. Rxa7 {[%clk 0:00:23.3]} 63... Nd4+
{[%clk 0:00:18.6]} 64. Kxb6 {[%clk 0:00:24.6]} 64... Nb3 {[%clk 0:00:19.4]} 65.
Nc3 {[%clk 0:00:24.9]} 65... Kf4 {[%clk 0:00:20.6]} 66. a4 {[%clk 0:00:26.2]}
1-0

[Event "*** Biggest EVER Titled Tuesday"]
[Site "Chess.com"]
[Date "2018.04.17"]
[Round "6"]
[White "WinnerOleg"]
[Black "StoreySniper"]
[Result "0-1"]
[WhiteElo "2314"]
[BlackElo "2251"]
[TimeControl "180+2"]
[EndTime "14:25:42 PDT"]
[Termination "StoreySniper won on time"]

1. b3 {[%clk 0:02:54.5]} 1... g6 {[%clk 0:02:59.9]} 2. Bb2 {[%clk 0:02:54.1]}
2... Nf6 {[%clk 0:03:00.5]} 3. Nf3 {[%clk 0:02:54.8]} 3... Bg7 {[%clk
0:03:00.7]} 4. c4 {[%clk 0:02:56.1]} 4... c5 {[%clk 0:03:01.2]} 5. g3 {[%clk
0:02:51.8]} 5... d5 {[%clk 0:03:00.6]} 6. cxd5 {[%clk 0:02:51.3]} 6... Qxd5
{[%clk 0:03:02.4]} 7. Bg2 {[%clk 0:02:48.4]} 7... Nc6 {[%clk 0:02:56.7]} 8. O-O
{[%clk 0:02:48.5]} 8... Qh5 {[%clk 0:02:52.3]} 9. Na3 {[%clk 0:02:28.9]} 9...
Bh3 {[%clk 0:02:48.7]} 10. Rc1 {[%clk 0:02:25.7]} 10... Bxg2 {[%clk 0:02:45.7]}
11. Kxg2 {[%clk 0:02:27.6]} 11... O-O {[%clk 0:02:22.9]} 12. h3 {[%clk
0:02:28.4]} 12... b6 {[%clk 0:02:20.5]} 13. d3 {[%clk 0:02:10]} 13... Qd5 {[%clk
0:02:19.5]} 14. Kh2 {[%clk 0:02:03.6]} 14... Ng4+ {[%clk 0:02:14.5]} 15. hxg4
{[%clk 0:02:01.3]} 15... Bxb2 {[%clk 0:02:15]} 16. Nc4 {[%clk 0:01:57.2]} 16...
Bxc1 {[%clk 0:02:13.8]} 17. Qxc1 {[%clk 0:01:59.1]} 17... Nd4 {[%clk 0:01:59.4]}
18. Nxd4 {[%clk 0:01:01.7]} 18... Qxd4 {[%clk 0:01:57.5]} 19. Kg2 {[%clk
0:00:55.9]} 19... Qxg4 {[%clk 0:01:52.9]} 20. f3 {[%clk 0:00:54.1]} 20... Qe6
{[%clk 0:01:42.7]} 21. Kf2 {[%clk 0:00:48.4]} 21... Qf6 {[%clk 0:01:32.8]} 22.
Rh1 {[%clk 0:00:48.3]} 22... Qd4+ {[%clk 0:01:31]} 23. Kg2 {[%clk 0:00:47.2]}
23... f6 {[%clk 0:01:25.2]} 24. Qh6 {[%clk 0:00:45.6]} 24... Rf7 {[%clk
0:01:26]} 25. Ne3 {[%clk 0:00:47]} 25... f5 {[%clk 0:01:10.7]} 26. Rh4 {[%clk
0:00:19.8]} 26... Qg7 {[%clk 0:01:03]} 27. Qg5 {[%clk 0:00:21.2]} 27... Re8
{[%clk 0:00:41.8]} 28. Nd5 {[%clk 0:00:18.5]} 28... e5 {[%clk 0:00:21.1]} 29. e4
{[%clk 0:00:15.4]} 29... fxe4 {[%clk 0:00:19.8]} 30. dxe4 {[%clk 0:00:17.3]}
30... Ref8 {[%clk 0:00:19.9]} 31. f4 {[%clk 0:00:16.5]} 31... exf4 {[%clk
0:00:20.8]} 32. gxf4 {[%clk 0:00:18.1]} 32... Qd4 {[%clk 0:00:15.1]} 33. Ne7+
{[%clk 0:00:15.6]} 33... Rxe7 {[%clk 0:00:13.4]} 34. Qxe7 {[%clk 0:00:16.5]}
34... Qd2+ {[%clk 0:00:14.1]} 35. Kg3 {[%clk 0:00:14.1]} 35... Qe3+ {[%clk
0:00:14.1]} 36. Kg2 {[%clk 0:00:13.5]} 36... Qe2+ {[%clk 0:00:15]} 37. Kg3
{[%clk 0:00:14.6]} 37... Qe1+ {[%clk 0:00:15.9]} 38. Kg2 {[%clk 0:00:15.2]}
38... Qd2+ {[%clk 0:00:16.2]} 39. Kg3 {[%clk 0:00:16]} 39... Qc3+ {[%clk
0:00:12.8]} 40. Kg2 {[%clk 0:00:16.6]} 40... Rf7 {[%clk 0:00:12.5]} 41. Qe8+
{[%clk 0:00:09.1]} 41... Kg7 {[%clk 0:00:13.8]} 42. f5 {[%clk 0:00:10.6]} 42...
Qd2+ {[%clk 0:00:12.3]} 43. Kg3 {[%clk 0:00:12]} 43... Qe1+ {[%clk 0:00:13.2]}
44. Kh3 {[%clk 0:00:13]} 44... Qe3+ {[%clk 0:00:10.7]} 45. Kh2 {[%clk
0:00:13.3]} 45... Qf2+ {[%clk 0:00:11.5]} 46. Kh3 {[%clk 0:00:14.8]} 46... Qf3+
{[%clk 0:00:11.9]} 47. Kh2 {[%clk 0:00:16.2]} 47... Qf2+ {[%clk 0:00:11.9]} 48.
Kh3 {[%clk 0:00:17.6]} 48... Qe3+ {[%clk 0:00:12.2]} 49. Kh2 {[%clk 0:00:18.8]}
49... Qd2+ {[%clk 0:00:13.7]} 50. Kh3 {[%clk 0:00:20.2]} 50... Qc3+ {[%clk
0:00:14.7]} 51. Kg2 {[%clk 0:00:20.3]} 51... Qc2+ {[%clk 0:00:14.6]} 52. Kh3
{[%clk 0:00:21.8]} 52... Qc3+ {[%clk 0:00:15.2]} 53. Kh2 {[%clk 0:00:23.3]}
53... Qf6 {[%clk 0:00:15.6]} 54. Rg4 {[%clk 0:00:13.9]} 54... g5 {[%clk
0:00:12.7]} 55. Rg2 {[%clk 0:00:05.3]} 55... h5 {[%clk 0:00:13.7]} 56. Rf2
{[%clk 0:00:05.8]} 56... g4 {[%clk 0:00:14.2]} 57. e5 {[%clk 0:00:07.2]} 57...
Qh4+ {[%clk 0:00:15.6]} 58. Kg2 {[%clk 0:00:07.8]} 58... Qh3+ {[%clk 0:00:16.8]}
59. Kg1 {[%clk 0:00:09.3]} 59... Qg3+ {[%clk 0:00:17.1]} 60. Kf1 {[%clk
0:00:09.4]} 60... Qd3+ {[%clk 0:00:17.9]} 61. Kg1 {[%clk 0:00:10.4]} 61... Qd1+
{[%clk 0:00:17]} 62. Kg2 {[%clk 0:00:09.3]} 62... Qd5+ {[%clk 0:00:17.6]} 63.
Kg1 {[%clk 0:00:10.7]} 63... Qd1+ {[%clk 0:00:18.1]} 64. Kg2 {[%clk 0:00:12]}
64... Qd5+ {[%clk 0:00:18.4]} 65. Kg1 {[%clk 0:00:13.5]} 65... g3 {[%clk
0:00:16.7]} 66. f6+ {[%clk 0:00:13.6]} 66... Kh7 {[%clk 0:00:18]} 67. Rf5 {[%clk
0:00:02.8]} 67... Qd1+ {[%clk 0:00:18]} 68. Rf1 {[%clk 0:00:03.6]} 68... Qd4+
{[%clk 0:00:18.3]} 69. Kg2 {[%clk 0:00:05.1]} 69... Qe4+ {[%clk 0:00:17.9]} 70.
Kxg3 {[%clk 0:00:05.7]} 70... Qg4+ {[%clk 0:00:16]} 71. Kf2 {[%clk 0:00:06.2]}
71... Rd7 {[%clk 0:00:16.2]} 0-1